[Event "*** Titled Tuesday Blitz"]
[Site "Chess.com"]
[Date "2021.04.27"]
[Round "9"]
[White "Klavdia_Nik"]
[Black "shreyansshah123"]
[Result "1/2-1/2"]
[WhiteElo "2034"]
[BlackElo "1698"]
[TimeControl "180+1"]
[EndTime "11:42:27 PDT"]
[Termination "Game drawn by stalemate"]

1. Nf3 {[%clk 0:02:49.6]} 1... Nf6 {[%clk 0:02:59.4]} 2. c4 {[%clk 0:02:46.3]}
2... e6 {[%clk 0:02:57.1]} 3. b3 {[%clk 0:02:46.2]} 3... d5 {[%clk 0:02:56.1]}
4. Bb2 {[%clk 0:02:46.4]} 4... Be7 {[%clk 0:02:54.7]} 5. g3 {[%clk 0:02:46.4]}
5... c6 {[%clk 0:02:54.2]} 6. Bg2 {[%clk 0:02:47.1]} 6... Nbd7 {[%clk
0:02:53.1]} 7. O-O {[%clk 0:02:47.3]} 7... O-O {[%clk 0:02:52.9]} 8. d4 {[%clk
0:02:47.8]} 8... b6 {[%clk 0:02:49.8]} 9. Nc3 {[%clk 0:02:48]} 9... Ba6 {[%clk
0:02:49.6]} 10. Ne5 {[%clk 0:02:44.7]} 10... Rc8 {[%clk 0:02:46.9]} 11. e4
{[%clk 0:02:38.7]} 11... dxc4 {[%clk 0:02:40.8]} 12. Nxc4 {[%clk 0:02:34.6]}
12... c5 {[%clk 0:02:37.7]} 13. d5 {[%clk 0:02:30]} 13... exd5 {[%clk
0:02:34.7]} 14. exd5 {[%clk 0:02:23.1]} 14... Bxc4 {[%clk 0:02:30.6]} 15. bxc4
{[%clk 0:02:19.5]} 15... Bd6 {[%clk 0:02:31.5]} 16. Nb5 {[%clk 0:01:45.6]} 16...
Ne8 {[%clk 0:02:29.3]} 17. Nxa7 {[%clk 0:01:42.1]} 17... Ra8 {[%clk 0:02:28.1]}
18. Nb5 {[%clk 0:01:42.6]} 18... Qb8 {[%clk 0:02:27.1]} 19. f4 {[%clk
0:01:29.4]} 19... Ndf6 {[%clk 0:02:21.3]} 20. Qc2 {[%clk 0:01:23.9]} 20... Qd8
{[%clk 0:02:14.7]} 21. Nxd6 {[%clk 0:01:20.8]} 21... Qxd6 {[%clk 0:02:07.8]} 22.
Be5 {[%clk 0:01:21.4]} 22... Qd7 {[%clk 0:02:06.1]} 23. a4 {[%clk 0:01:21.9]}
23... Ra5 {[%clk 0:02:05.4]} 24. h3 {[%clk 0:01:20.2]} 24... Nd6 {[%clk
0:02:05.3]} 25. Kh2 {[%clk 0:01:18.9]} 25... Nfe8 {[%clk 0:02:05.1]} 26. f5
{[%clk 0:01:11]} 26... f6 {[%clk 0:02:02.2]} 27. Bc3 {[%clk 0:01:10.8]} 27...
Ra8 {[%clk 0:02:01.3]} 28. Qd3 {[%clk 0:01:10.2]} 28... Nc7 {[%clk 0:01:59.9]}
29. a5 {[%clk 0:01:06.6]} 29... bxa5 {[%clk 0:01:59.6]} 30. Rxa5 {[%clk
0:01:01.5]} 30... Rxa5 {[%clk 0:01:58.4]} 31. Bxa5 {[%clk 0:01:02.2]} 31... Ra8
{[%clk 0:01:58.3]} 32. Bxc7 {[%clk 0:01:01.6]} 32... Qxc7 {[%clk 0:01:59.2]} 33.
Qe2 {[%clk 0:00:59.8]} 33... Ra4 {[%clk 0:01:56.8]} 34. Qe6+ {[%clk 0:00:56.3]}
34... Kf8 {[%clk 0:01:57.1]} 35. Rf4 {[%clk 0:00:26.8]} 35... Rxc4 {[%clk
0:01:49.2]} 36. Rxc4 {[%clk 0:00:16.7]} 36... Nxc4 {[%clk 0:01:50.1]} 37. d6
{[%clk 0:00:16.7]} 37... Qxd6 {[%clk 0:01:45.9]} 38. Qxc4 {[%clk 0:00:13.3]}
38... Ke7 {[%clk 0:01:44.4]} 39. h4 {[%clk 0:00:13.3]} 39... Qd4 {[%clk
0:01:44.8]} 40. Qxd4 {[%clk 0:00:12.8]} 40... cxd4 {[%clk 0:01:45.7]} 41. Be4
{[%clk 0:00:13]} 41... Kd6 {[%clk 0:01:46.3]} 42. Kg2 {[%clk 0:00:13.7]} 42...
Ke5 {[%clk 0:01:46.9]} 43. Bd3 {[%clk 0:00:13.9]} 43... Kd6 {[%clk 0:01:47.1]}
44. Kf3 {[%clk 0:00:14.5]} 44... Kc5 {[%clk 0:01:47.7]} 45. Ke4 {[%clk
0:00:14.7]} 45... g6 {[%clk 0:01:46.9]} 46. g4 {[%clk 0:00:14.1]} 46... gxf5+
{[%clk 0:01:45.5]} 47. gxf5 {[%clk 0:00:14.2]} 47... h5 {[%clk 0:01:45.6]} 48.
Be2 {[%clk 0:00:13.4]} 48... Kd6 {[%clk 0:01:45.5]} 49. Kxd4 {[%clk 0:00:13.4]}
49... Ke7 {[%clk 0:01:46.1]} 50. Bc4 {[%clk 0:00:13.5]} 50... Kd7 {[%clk
0:01:46.2]} 51. Be6+ {[%clk 0:00:13.7]} 51... Ke7 {[%clk 0:01:46.3]} 52. Bd5
{[%clk 0:00:13.4]} 52... Kd6 {[%clk 0:01:46.4]} 53. Bf3 {[%clk 0:00:14]} 53...
Ke7 {[%clk 0:01:45.9]} 54. Bxh5 {[%clk 0:00:14.6]} 54... Kf8 {[%clk 0:01:45.4]}
55. Bg6 {[%clk 0:00:15.3]} 55... Kg7 {[%clk 0:01:46]} 56. Kd5 {[%clk 0:00:14.6]}
56... Kh6 {[%clk 0:01:46.7]} 57. Ke6 {[%clk 0:00:15]} 57... Kg7 {[%clk
0:01:47.6]} 58. h5 {[%clk 0:00:14.3]} 58... Kh6 {[%clk 0:01:47.7]} 59. Kxf6
{[%clk 0:00:14.9]} 1/2-1/2

[Event "*** Titled Tuesday Blitz"]
[Site "Chess.com"]
[Date "2021.04.27"]
[Round "9"]
[White "NiranjanNavalgund"]
[Black "szefru"]
[Result "1-0"]
[WhiteElo "2478"]
[BlackElo "2194"]
[TimeControl "180+1"]
[EndTime "11:42:29 PDT"]
[Termination "NiranjanNavalgund won by checkmate"]

1. e4 {[%clk 0:03:00.9]} 1... e5 {[%clk 0:02:58.4]} 2. Nf3 {[%clk 0:03:00.5]}
2... Nc6 {[%clk 0:02:56.7]} 3. Nc3 {[%clk 0:03:01]} 3... Nf6 {[%clk 0:02:53.6]}
4. Nxe5 {[%clk 0:03:00.3]} 4... Nxe5 {[%clk 0:02:51]} 5. d4 {[%clk 0:02:59]}
5... Ng6 {[%clk 0:02:38.3]} 6. e5 {[%clk 0:02:59]} 6... d6 {[%clk 0:02:01.6]} 7.
exf6 {[%clk 0:02:54.2]} 7... Qxf6 {[%clk 0:02:02.5]} 8. Be2 {[%clk 0:02:47.7]}
8... Be7 {[%clk 0:02:00.3]} 9. O-O {[%clk 0:02:47.7]} 9... O-O {[%clk
0:01:59.9]} 10. Nd5 {[%clk 0:02:48.2]} 10... Qf5 {[%clk 0:01:31.3]} 11. Nxc7
{[%clk 0:02:48.2]} 11... Rb8 {[%clk 0:01:27.9]} 12. Bf3 {[%clk 0:02:44.3]} 12...
Nh4 {[%clk 0:01:12.3]} 13. Nd5 {[%clk 0:02:44.1]} 13... Bg5 {[%clk 0:00:48.4]}
14. Bxg5 {[%clk 0:02:22.5]} 14... Qxg5 {[%clk 0:00:49.3]} 15. Ne3 {[%clk
0:02:17.7]} 15... Bd7 {[%clk 0:00:34]} 16. Bg4 {[%clk 0:02:15.7]} 16... f5
{[%clk 0:00:30.5]} 17. Bh3 {[%clk 0:02:09.3]} 17... Rbd8 {[%clk 0:00:26.9]} 18.
f4 {[%clk 0:02:08.1]} 18... Qf6 {[%clk 0:00:24.3]} 19. Nd5 {[%clk 0:02:06.4]}
19... Qf7 {[%clk 0:00:24.6]} 20. Nc3 {[%clk 0:01:56.9]} 20... Ng6 {[%clk
0:00:23.5]} 21. Qd2 {[%clk 0:01:56.1]} 21... Bc6 {[%clk 0:00:23.6]} 22. Rae1
{[%clk 0:01:56.1]} 22... Rfe8 {[%clk 0:00:22]} 23. d5 {[%clk 0:01:55.9]} 23...
Bd7 {[%clk 0:00:21.6]} 24. g3 {[%clk 0:01:52.6]} 24... Nf8 {[%clk 0:00:20.2]}
25. Qd4 {[%clk 0:01:50.5]} 25... Bc8 {[%clk 0:00:18.2]} 26. Qxa7 {[%clk
0:01:48.7]} 26... Rxe1 {[%clk 0:00:18]} 27. Rxe1 {[%clk 0:01:49.2]} 27... Re8
{[%clk 0:00:18.5]} 28. Qf2 {[%clk 0:01:48.1]} 28... Rxe1+ {[%clk 0:00:17.9]} 29.
Qxe1 {[%clk 0:01:49]} 29... Nd7 {[%clk 0:00:18]} 30. Qe6 {[%clk 0:01:47.9]}
30... Nb6 {[%clk 0:00:16.5]} 31. Qxd6 {[%clk 0:01:47.4]} 31... h6 {[%clk
0:00:14.4]} 32. Qd8+ {[%clk 0:01:47]} 32... Kh7 {[%clk 0:00:14.2]} 33. Qxb6
{[%clk 0:01:47.6]} 33... Qe7 {[%clk 0:00:13.8]} 34. Qf2 {[%clk 0:01:46.7]} 34...
Bd7 {[%clk 0:00:13.5]} 35. Bg2 {[%clk 0:01:44.4]} 35... Qb4 {[%clk 0:00:13.5]}
36. Qd2 {[%clk 0:01:38.3]} 36... Qxb2 {[%clk 0:00:13.4]} 37. h4 {[%clk
0:01:38.4]} 37... b5 {[%clk 0:00:12.6]} 38. Kh2 {[%clk 0:01:37.5]} 38... b4
{[%clk 0:00:13.1]} 39. Ne2 {[%clk 0:01:37.6]} 39... Qxa2 {[%clk 0:00:13.5]} 40.
Qxb4 {[%clk 0:01:37.6]} 40... Qxc2 {[%clk 0:00:13.9]} 41. Nd4 {[%clk 0:01:37.8]}
41... Qd3 {[%clk 0:00:13.3]} 42. Qc5 {[%clk 0:01:37.5]} 42... g5 {[%clk
0:00:12.8]} 43. Qe7+ {[%clk 0:01:36.2]} 43... Kg6 {[%clk 0:00:13]} 44. h5+
{[%clk 0:01:33.6]} 44... Kxh5 {[%clk 0:00:13.1]} 45. Qf7+ {[%clk 0:01:29.6]}
45... Kg4 {[%clk 0:00:12]} 46. Bh3# {[%clk 0:01:30]} 1-0

[Event "*** Titled Tuesday Blitz"]
[Site "Chess.com"]
[Date "2021.04.27"]
[Round "9"]
[White "lacafi"]
[Black "davigator"]
[Result "0-1"]
[WhiteElo "2166"]
[BlackElo "2424"]
[TimeControl "180+1"]
[EndTime "11:42:32 PDT"]
[Termination "davigator won on time"]

1. d4 {[%clk 0:03:00.9]} 1... Nf6 {[%clk 0:02:58.6]} 2. Nf3 {[%clk 0:03:01.1]}
2... e6 {[%clk 0:02:56.7]} 3. e3 {[%clk 0:03:00.9]} 3... d5 {[%clk 0:02:52.1]}
4. Bd3 {[%clk 0:03:01.3]} 4... c5 {[%clk 0:02:51.8]} 5. c3 {[%clk 0:03:01.5]}
5... Bd6 {[%clk 0:02:48.7]} 6. Nbd2 {[%clk 0:03:02.1]} 6... b6 {[%clk
0:02:43.3]} 7. Qe2 {[%clk 0:03:01.5]} 7... Bb7 {[%clk 0:02:42.5]} 8. O-O {[%clk
0:02:59.9]} 8... Ne4 {[%clk 0:02:41.3]} 9. dxc5 {[%clk 0:02:54.2]} 9... Nxc5
{[%clk 0:02:33.5]} 10. Bb5+ {[%clk 0:02:54.1]} 10... Nbd7 {[%clk 0:02:31.8]} 11.
b4 {[%clk 0:02:50.4]} 11... Ne4 {[%clk 0:02:28.6]} 12. Nxe4 {[%clk 0:02:50.4]}
12... dxe4 {[%clk 0:02:28.8]} 13. Nd4 {[%clk 0:02:42]} 13... a6 {[%clk
0:02:27.8]} 14. Ba4 {[%clk 0:02:22]} 14... O-O {[%clk 0:02:25.9]} 15. Rd1 {[%clk
0:02:17.4]} 15... Ne5 {[%clk 0:02:24.9]} 16. Bb3 {[%clk 0:02:01.4]} 16... Qc7
{[%clk 0:01:48.9]} 17. Bb2 {[%clk 0:01:45.2]} 17... Nd3 {[%clk 0:01:39.3]} 18.
h3 {[%clk 0:01:44.6]} 18... Rac8 {[%clk 0:01:36.4]} 19. Rxd3 {[%clk 0:01:09.2]}
19... exd3 {[%clk 0:01:35.8]} 20. Qxd3 {[%clk 0:01:10.1]} 20... Be5 {[%clk
0:01:30.6]} 21. Bc2 {[%clk 0:00:08.7]} 21... g6 {[%clk 0:01:28.3]} 22. Rc1
{[%clk 0:00:07.6]} 22... Rfd8 {[%clk 0:01:26.2]} 23. Bb1 {[%clk 0:00:07.6]}
23... Bd5 {[%clk 0:01:13.5]} 24. Qe2 {[%clk 0:00:07.4]} 24... b5 {[%clk
0:01:04]} 25. f4 {[%clk 0:00:06.3]} 25... Bg7 {[%clk 0:01:01.1]} 26. Qg4 {[%clk
0:00:02.9]} 26... f5 {[%clk 0:00:57.9]} 27. Qg3 {[%clk 0:00:01.4]} 27... Re8
{[%clk 0:00:53.4]} 28. h4 {[%clk 0:00:01.8]} 28... Qb7 {[%clk 0:00:47]} 29. h5
{[%clk 0:00:01.8]} 29... gxh5 {[%clk 0:00:46.4]} 0-1

[Event "*** Titled Tuesday Blitz"]
[Site "Chess.com"]
[Date "2021.04.27"]
[Round "9"]
[White "JoachimMouhamad"]
[Black "Nozdrachev_Leonid"]
[Result "0-1"]
[WhiteElo "2463"]
[BlackElo "2616"]
[TimeControl "180+1"]
[EndTime "11:42:34 PDT"]
[Termination "Nozdrachev_Leonid won on time"]

1. e4 {[%clk 0:03:00.9]} 1... d6 {[%clk 0:00:42]} 2. d4 {[%clk 0:02:59]} 2...
Nf6 {[%clk 0:00:42]} 3. Nc3 {[%clk 0:02:58.3]} 3... e5 {[%clk 0:00:42.3]} 4. Nf3
{[%clk 0:02:55.7]} 4... Nbd7 {[%clk 0:00:42.3]} 5. Bc4 {[%clk 0:02:56.3]} 5...
Be7 {[%clk 0:00:42.8]} 6. O-O {[%clk 0:02:55.6]} 6... O-O {[%clk 0:00:43.3]} 7.
a4 {[%clk 0:02:54.7]} 7... c6 {[%clk 0:00:43.7]} 8. h3 {[%clk 0:02:53.5]} 8...
Qc7 {[%clk 0:00:44.2]} 9. Re1 {[%clk 0:02:53.6]} 9... Re8 {[%clk 0:00:44.3]} 10.
dxe5 {[%clk 0:02:43.6]} 10... dxe5 {[%clk 0:00:43.5]} 11. Ng5 {[%clk 0:02:40.5]}
11... Rf8 {[%clk 0:00:43.5]} 12. Qe2 {[%clk 0:02:38.4]} 12... h6 {[%clk
0:00:43.8]} 13. Nf3 {[%clk 0:02:29.5]} 13... Bb4 {[%clk 0:00:43.6]} 14. Bd2
{[%clk 0:02:23]} 14... a5 {[%clk 0:00:43.8]} 15. Bb3 {[%clk 0:02:21.2]} 15...
Nc5 {[%clk 0:00:43.3]} 16. Bc4 {[%clk 0:02:08.3]} 16... Re8 {[%clk 0:00:42.8]}
17. Nh4 {[%clk 0:01:58.8]} 17... Be6 {[%clk 0:00:39.9]} 18. Bxe6 {[%clk
0:01:56.4]} 18... Nxe6 {[%clk 0:00:40.8]} 19. Nf5 {[%clk 0:01:55.3]} 19... Nd4
{[%clk 0:00:40.5]} 20. Qd3 {[%clk 0:01:51.2]} 20... Rad8 {[%clk 0:00:37.8]} 21.
Qg3 {[%clk 0:01:32.4]} 21... Nxf5 {[%clk 0:00:37.4]} 22. exf5 {[%clk 0:01:29.9]}
22... Rxd2 {[%clk 0:00:37.3]} 23. Ne2 {[%clk 0:01:01.1]} 23... Rxc2 {[%clk
0:00:36.5]} 24. Red1 {[%clk 0:00:59.9]} 24... Rxe2 {[%clk 0:00:36.2]} 0-1

[Event "*** Titled Tuesday Blitz"]
[Site "Chess.com"]
[Date "2021.04.27"]
[Round "9"]
[White "elohunter1999"]
[Black "Agoking701"]
[Result "1-0"]
[WhiteElo "2489"]
[BlackElo "2280"]
[TimeControl "180+1"]
[EndTime "11:42:34 PDT"]
[Termination "elohunter1999 won by resignation"]

1. d4 {[%clk 0:03:00.9]} 1... Nf6 {[%clk 0:02:59.3]} 2. c4 {[%clk 0:03:00.4]}
2... g6 {[%clk 0:02:58.4]} 3. Nc3 {[%clk 0:02:55]} 3... Bg7 {[%clk 0:02:58.7]}
4. e4 {[%clk 0:02:54.4]} 4... O-O {[%clk 0:02:56.7]} 5. Nf3 {[%clk 0:02:54.8]}
5... d6 {[%clk 0:02:55.1]} 6. Be2 {[%clk 0:02:54.7]} 6... e5 {[%clk 0:02:49.7]}
7. O-O {[%clk 0:02:53.7]} 7... Nc6 {[%clk 0:02:42.1]} 8. d5 {[%clk 0:02:53.3]}
8... Ne7 {[%clk 0:02:42.5]} 9. b4 {[%clk 0:02:52.8]} 9... a5 {[%clk 0:02:33.8]}
10. Ba3 {[%clk 0:02:45.7]} 10... axb4 {[%clk 0:02:33.8]} 11. Bxb4 {[%clk
0:02:46.6]} 11... Nd7 {[%clk 0:02:34.4]} 12. a4 {[%clk 0:02:38.7]} 12... h6
{[%clk 0:02:25.1]} 13. Nd2 {[%clk 0:02:27.1]} 13... f5 {[%clk 0:02:23]} 14. Nb3
{[%clk 0:02:23.4]} 14... Nf6 {[%clk 0:01:47.5]} 15. f3 {[%clk 0:02:23.5]} 15...
g5 {[%clk 0:01:14.3]} 16. c5 {[%clk 0:02:09.2]} 16... Ne8 {[%clk 0:01:11.7]} 17.
a5 {[%clk 0:02:01.6]} 17... Rf6 {[%clk 0:01:00.7]} 18. cxd6 {[%clk 0:01:51.1]}
18... Nxd6 {[%clk 0:00:59.2]} 19. Nc5 {[%clk 0:01:45.6]} 19... g4 {[%clk
0:00:44]} 20. fxg4 {[%clk 0:01:43.7]} 20... f4 {[%clk 0:00:36.2]} 21. g5 {[%clk
0:01:24.7]} 21... Rg6 {[%clk 0:00:27.5]} 22. Bg4 {[%clk 0:01:22.1]} 22... hxg5
{[%clk 0:00:20.6]} 23. Be6+ {[%clk 0:01:19.4]} 23... Kh7 {[%clk 0:00:17.2]} 24.
Qh5+ {[%clk 0:01:16.8]} 24... Bh6 {[%clk 0:00:15.2]} 25. g3 {[%clk 0:01:08.1]}
25... Qf8 {[%clk 0:00:12.3]} 26. gxf4 {[%clk 0:01:03.6]} 26... gxf4+ {[%clk
0:00:11.6]} 27. Kh1 {[%clk 0:01:03.9]} 27... Rg5 {[%clk 0:00:10]} 28. Qh3 {[%clk
0:01:02.4]} 28... Qf6 {[%clk 0:00:07.6]} 29. Rg1 {[%clk 0:01:02.2]} 29... Bxe6
{[%clk 0:00:06.3]} 30. Nxe6 {[%clk 0:01:02.3]} 30... Rxg1+ {[%clk 0:00:06.1]}
31. Rxg1 {[%clk 0:01:02]} 31... c6 {[%clk 0:00:04.8]} 32. Bxd6 {[%clk
0:01:00.8]} 32... cxd5 {[%clk 0:00:05]} 33. exd5 {[%clk 0:00:58.7]} 33... Nf5
{[%clk 0:00:03.8]} 34. Ne4 {[%clk 0:00:58.5]} 1-0

[Event "*** Titled Tuesday Blitz"]
[Site "Chess.com"]
[Date "2021.04.27"]
[Round "9"]
[White "Zq1"]
[Black "Jungle_Jaguar"]
[Result "0-1"]
[WhiteElo "2537"]
[BlackElo "2691"]
[TimeControl "180+1"]
[EndTime "11:42:41 PDT"]
[Termination "Jungle_Jaguar won on time"]

1. Nf3 {[%clk 0:03:00.9]} 1... d5 {[%clk 0:02:57.7]} 2. c4 {[%clk 0:02:58.5]}
2... c6 {[%clk 0:02:57.3]} 3. e3 {[%clk 0:02:56.5]} 3... Nf6 {[%clk 0:02:54.3]}
4. Nc3 {[%clk 0:02:56.1]} 4... Nbd7 {[%clk 0:02:53.5]} 5. d4 {[%clk 0:02:48.9]}
5... e6 {[%clk 0:02:53.1]} 6. Bd2 {[%clk 0:02:49.1]} 6... Bd6 {[%clk 0:02:51.8]}
7. Bd3 {[%clk 0:02:49.2]} 7... dxc4 {[%clk 0:02:51.2]} 8. Bxc4 {[%clk
0:02:48.8]} 8... O-O {[%clk 0:02:51.8]} 9. O-O {[%clk 0:02:48.1]} 9... b5 {[%clk
0:02:52.3]} 10. Bd3 {[%clk 0:02:47.6]} 10... Bb7 {[%clk 0:02:52.9]} 11. e4
{[%clk 0:02:46.1]} 11... e5 {[%clk 0:02:51.2]} 12. dxe5 {[%clk 0:02:20.9]} 12...
Nxe5 {[%clk 0:02:49.8]} 13. Nxe5 {[%clk 0:02:15.3]} 13... Bxe5 {[%clk
0:02:50.7]} 14. Be3 {[%clk 0:02:13.6]} 14... Qe7 {[%clk 0:02:44.6]} 15. Qf3
{[%clk 0:02:07.3]} 15... Rfd8 {[%clk 0:02:33.3]} 16. Rad1 {[%clk 0:02:04.2]}
16... Qb4 {[%clk 0:01:53.5]} 17. Qf5 {[%clk 0:01:50]} 17... Re8 {[%clk
0:01:51.8]} 18. Rd2 {[%clk 0:01:38.6]} 18... Bc8 {[%clk 0:01:39.9]} 19. Qg5
{[%clk 0:01:31.1]} 19... Ng4 {[%clk 0:01:38.2]} 20. a3 {[%clk 0:01:10]} 20...
Qf8 {[%clk 0:01:26.2]} 21. Be2 {[%clk 0:00:44.7]} 21... h6 {[%clk 0:01:05.1]}
22. Qh4 {[%clk 0:00:37.2]} 22... g5 {[%clk 0:01:00.4]} 23. Bxg5 {[%clk
0:00:28.1]} 23... hxg5 {[%clk 0:01:01.3]} 24. Qxg5+ {[%clk 0:00:28.3]} 24... Qg7
{[%clk 0:01:01.9]} 25. Qxg7+ {[%clk 0:00:26.4]} 25... Kxg7 {[%clk 0:00:53.2]}
26. h3 {[%clk 0:00:09.5]} 26... Nf6 {[%clk 0:00:50.7]} 27. f3 {[%clk 0:00:07.6]}
27... Be6 {[%clk 0:00:48.1]} 28. Rfd1 {[%clk 0:00:06.9]} 28... Bf4 {[%clk
0:00:46.3]} 29. Rd3 {[%clk 0:00:02.7]} 29... Bc4 {[%clk 0:00:46.4]} 30. Rd4
{[%clk 0:00:01.3]} 30... Be3+ {[%clk 0:00:46.7]} 31. Kf1 {[%clk 0:00:01.5]}
31... Bxd4 {[%clk 0:00:45.1]} 0-1

[Event "*** Titled Tuesday Blitz"]
[Site "Chess.com"]
[Date "2021.04.27"]
[Round "9"]
[White "AntonovaNadezhda"]
[Black "Romadk"]
[Result "0-1"]
[WhiteElo "2124"]
[BlackElo "2326"]
[TimeControl "180+1"]
[EndTime "11:42:41 PDT"]
[Termination "Romadk won on time"]

1. d4 {[%clk 0:03:00.9]} 1... Nf6 {[%clk 0:02:53.7]} 2. c4 {[%clk 0:02:59.3]}
2... e6 {[%clk 0:02:53.8]} 3. Nf3 {[%clk 0:02:57.9]} 3... d5 {[%clk 0:02:52.9]}
4. g3 {[%clk 0:02:57.5]} 4... dxc4 {[%clk 0:02:52.5]} 5. Bg2 {[%clk 0:02:54.7]}
5... Bd7 {[%clk 0:02:52.5]} 6. a4 {[%clk 0:02:51.4]} 6... Bc6 {[%clk 0:02:51.7]}
7. O-O {[%clk 0:02:48]} 7... a6 {[%clk 0:02:49.6]} 8. Nbd2 {[%clk 0:02:36.8]}
8... b5 {[%clk 0:02:49.7]} 9. axb5 {[%clk 0:02:23.9]} 9... axb5 {[%clk
0:02:50.6]} 10. Rxa8 {[%clk 0:02:23.1]} 10... Bxa8 {[%clk 0:02:51.5]} 11. Qc2
{[%clk 0:02:18.9]} 11... Nbd7 {[%clk 0:02:48.1]} 12. b3 {[%clk 0:02:16.5]} 12...
cxb3 {[%clk 0:02:46.1]} 13. Qxb3 {[%clk 0:02:10.1]} 13... Qb8 {[%clk 0:02:42.9]}
14. g4 {[%clk 0:01:35.3]} 14... Nxg4 {[%clk 0:02:35.1]} 15. e4 {[%clk
0:01:34.4]} 15... Be7 {[%clk 0:02:31.1]} 16. d5 {[%clk 0:01:22.5]} 16... exd5
{[%clk 0:02:26]} 17. exd5 {[%clk 0:01:21.2]} 17... Bd6 {[%clk 0:02:26.1]} 18.
Re1+ {[%clk 0:01:17.7]} 18... Kf8 {[%clk 0:02:25.8]} 19. Ne4 {[%clk 0:01:08.8]}
19... Nge5 {[%clk 0:02:16.5]} 20. Nxd6 {[%clk 0:01:05.7]} 20... cxd6 {[%clk
0:02:16.6]} 21. Ba3 {[%clk 0:00:59.6]} 21... Kg8 {[%clk 0:02:09.5]} 22. Nxe5
{[%clk 0:00:47.2]} 22... Nxe5 {[%clk 0:02:10.4]} 23. Bb4 {[%clk 0:00:32.5]}
23... g6 {[%clk 0:01:49.8]} 24. Qc3 {[%clk 0:00:23.7]} 24... Qd8 {[%clk
0:01:41.8]} 25. f4 {[%clk 0:00:17.2]} 25... Nc4 {[%clk 0:01:40.4]} 26. Qd4
{[%clk 0:00:12.4]} 26... h5 {[%clk 0:01:34.8]} 27. Bc3 {[%clk 0:00:11.9]} 27...
f6 {[%clk 0:01:33.1]} 28. Qxf6 {[%clk 0:00:09.1]} 28... Qxf6 {[%clk 0:01:34]}
29. Bxf6 {[%clk 0:00:09.3]} 29... Rh6 {[%clk 0:01:32.7]} 30. Bg5 {[%clk
0:00:07.1]} 30... Rh7 {[%clk 0:01:31.6]} 31. Rb1 {[%clk 0:00:07.1]} 31... Rb7
{[%clk 0:01:23.3]} 32. Rb4 {[%clk 0:00:06.9]} 32... Ne3 {[%clk 0:01:20.8]} 33.
Bf3 {[%clk 0:00:05.6]} 33... Nf5 {[%clk 0:01:20.5]} 34. Bf6 {[%clk 0:00:04.4]}
34... Rb8 {[%clk 0:01:19.3]} 35. Bc3 {[%clk 0:00:03.3]} 35... Nh4 {[%clk
0:01:18.6]} 36. Bh1 {[%clk 0:00:02.6]} 36... Nf5 {[%clk 0:01:18.6]} 37. Bf6
{[%clk 0:00:02.2]} 37... Kf7 {[%clk 0:01:18.3]} 38. Bg5 {[%clk 0:00:01.4]} 38...
Ne3 {[%clk 0:01:17.1]} 39. Bg2 {[%clk 0:00:02.3]} 39... Nxd5 {[%clk 0:01:16.2]}
40. Bh3 {[%clk 0:00:01.5]} 40... Nxb4 {[%clk 0:01:15.2]} 0-1

[Event "*** Titled Tuesday Blitz"]
[Site "Chess.com"]
[Date "2021.04.27"]
[Round "9"]
[White "anon569"]
[Black "Vigorito-NE"]
[Result "0-1"]
[WhiteElo "2259"]
[BlackElo "2498"]
[TimeControl "180+1"]
[EndTime "11:42:42 PDT"]
[Termination "Vigorito-NE won on time"]

1. e4 {[%clk 0:00:15.9]} 1... e5 {[%clk 0:02:49.6]} 2. Nf3 {[%clk 0:00:15.5]}
2... Nc6 {[%clk 0:02:49.2]} 3. Bb5 {[%clk 0:00:16.1]} 3... Nf6 {[%clk
0:02:48.6]} 4. O-O {[%clk 0:00:15.6]} 4... Nxe4 {[%clk 0:02:48]} 5. d4 {[%clk
0:00:15.3]} 5... Nd6 {[%clk 0:02:47.8]} 6. Bxc6 {[%clk 0:00:15.8]} 6... dxc6
{[%clk 0:02:48.5]} 7. dxe5 {[%clk 0:00:16.5]} 7... Nf5 {[%clk 0:02:48.9]} 8.
Qxd8+ {[%clk 0:00:17.2]} 8... Kxd8 {[%clk 0:02:49.8]} 9. Nc3 {[%clk 0:00:17.6]}
9... Ke8 {[%clk 0:02:49]} 10. Ne4 {[%clk 0:00:17.8]} 10... Be6 {[%clk
0:02:40.2]} 11. Rd1 {[%clk 0:00:17.1]} 11... a5 {[%clk 0:02:32.8]} 12. Neg5
{[%clk 0:00:02.9]} 12... Bd5 {[%clk 0:02:31.4]} 13. c3 {[%clk 0:00:03.5]} 13...
h6 {[%clk 0:02:30.1]} 14. Nh3 {[%clk 0:00:03.6]} 14... Bxf3 {[%clk 0:02:27.8]}
15. gxf3 {[%clk 0:00:03.5]} 15... a4 {[%clk 0:02:11.7]} 16. Kf1 {[%clk
0:00:04.4]} 16... Ra5 {[%clk 0:02:01.4]} 17. f4 {[%clk 0:00:03.6]} 17... Rd5
{[%clk 0:01:44.9]} 18. Ke2 {[%clk 0:00:01.1]} 18... Rxd1 {[%clk 0:01:40.9]} 19.
Kxd1 {[%clk 0:00:02]} 19... Kd7 {[%clk 0:01:41.3]} 20. Ke2 {[%clk 0:00:02.9]}
20... Ke6 {[%clk 0:01:38.3]} 21. Ng1 {[%clk 0:00:03.8]} 21... Bc5 {[%clk
0:01:35.1]} 22. Nf3 {[%clk 0:00:04.7]} 22... Rd8 {[%clk 0:01:34.9]} 23. Bd2
{[%clk 0:00:05.4]} 23... b5 {[%clk 0:01:32.4]} 24. Rg1 {[%clk 0:00:06]} 24... g6
{[%clk 0:01:18.7]} 25. Be3 {[%clk 0:00:06.1]} 25... Be7 {[%clk 0:01:12.9]} 26.
Re1 {[%clk 0:00:03.3]} 26... c5 {[%clk 0:01:12]} 27. Rc1 {[%clk 0:00:02.7]}
27... c4 {[%clk 0:01:08.9]} 28. Re1 {[%clk 0:00:02.2]} 28... Rd3 {[%clk
0:01:06.5]} 29. Nd2 {[%clk 0:00:02.7]} 29... Nxe3 {[%clk 0:00:47.9]} 30. fxe3
{[%clk 0:00:03.6]} 30... Bc5 {[%clk 0:00:47.5]} 31. Nf1 {[%clk 0:00:01.1]} 31...
g5 {[%clk 0:00:45.2]} 0-1